[Event "*** SCC Grand Prix: Titled Tuesday Blitz"]
[Site "Chess.com"]
[Date "2020.10.06"]
[Round "7"]
[White "PotapovaM"]
[Black "yourstrulyme"]
[Result "0-1"]
[WhiteElo "2548"]
[BlackElo "2438"]
[TimeControl "180+1"]
[EndTime "11:20:44 PDT"]
[Termination "yourstrulyme won by checkmate"]

1. d4 {[%clk 0:03:00.7]} 1... Nf6 {[%clk 0:02:58.3]} 2. c4 {[%clk 0:03:01.2]}
2... g6 {[%clk 0:02:58.9]} 3. Nc3 {[%clk 0:03:01.1]} 3... Bg7 {[%clk 0:02:59.3]}
4. e4 {[%clk 0:03:01]} 4... d6 {[%clk 0:02:59.5]} 5. h3 {[%clk 0:03:01.5]} 5...
O-O {[%clk 0:02:59.6]} 6. Be3 {[%clk 0:03:01.2]} 6... e5 {[%clk 0:02:59.1]} 7.
d5 {[%clk 0:03:01.4]} 7... Na6 {[%clk 0:02:59.2]} 8. Nf3 {[%clk 0:03:00.8]} 8...
Nc5 {[%clk 0:02:59.5]} 9. Nd2 {[%clk 0:03:01.2]} 9... a5 {[%clk 0:03:00.1]} 10.
g4 {[%clk 0:02:59.9]} 10... Bd7 {[%clk 0:02:57.8]} 11. Be2 {[%clk 0:03:00.2]}
11... c6 {[%clk 0:02:55.1]} 12. Qc2 {[%clk 0:02:59.2]} 12... Qb6 {[%clk
0:02:46.4]} 13. Kf1 {[%clk 0:02:56.7]} 13... cxd5 {[%clk 0:02:45.5]} 14. exd5
{[%clk 0:02:53]} 14... Qd8 {[%clk 0:02:07.2]} 15. g5 {[%clk 0:02:40.5]} 15...
Bf5 {[%clk 0:01:58.6]} 16. Qd1 {[%clk 0:02:29.8]} 16... Nh5 {[%clk 0:01:54.4]}
17. Bg4 {[%clk 0:02:08.8]} 17... Bd3+ {[%clk 0:01:47.6]} 18. Kg1 {[%clk
0:02:08.9]} 18... f5 {[%clk 0:01:47.6]} 19. Be2 {[%clk 0:02:06.3]} 19... Nf4
{[%clk 0:01:20.6]} 20. h4 {[%clk 0:01:37]} 20... Nxe2+ {[%clk 0:01:04.2]} 21.
Nxe2 {[%clk 0:01:37.5]} 21... f4 {[%clk 0:01:03.8]} 22. Bxc5 {[%clk 0:01:37]}
22... dxc5 {[%clk 0:01:04.7]} 23. Nc3 {[%clk 0:01:34.3]} 23... f3 {[%clk
0:00:55.4]} 24. Rh3 {[%clk 0:01:19.5]} 24... Qd7 {[%clk 0:00:47.8]} 25. Rg3
{[%clk 0:01:16.1]} 25... Rf4 {[%clk 0:00:35.8]} 26. Nxf3 {[%clk 0:01:11.1]}
26... e4 {[%clk 0:00:35.7]} 27. Qd2 {[%clk 0:01:03]} 27... Raf8 {[%clk
0:00:33.7]} 28. Ne1 {[%clk 0:00:30.6]} 28... Rxf2 {[%clk 0:00:31.4]} 29. Qxf2
{[%clk 0:00:20.8]} 29... Rxf2 {[%clk 0:00:32.3]} 30. Kxf2 {[%clk 0:00:21.7]}
30... Qf5+ {[%clk 0:00:32.6]} 31. Kg2 {[%clk 0:00:21.4]} 31... Qf1+ {[%clk
0:00:31.9]} 32. Kh2 {[%clk 0:00:21.1]} 32... Be5 {[%clk 0:00:28.3]} 33. Nxd3
{[%clk 0:00:11.7]} 33... Bxg3+ {[%clk 0:00:24]} 34. Kxg3 {[%clk 0:00:12.6]}
34... Qxa1 {[%clk 0:00:23.8]} 35. Nxe4 {[%clk 0:00:11.2]} 35... Qxa2 {[%clk
0:00:15.3]} 36. d6 {[%clk 0:00:08.7]} 36... Qxc4 {[%clk 0:00:14.1]} 37. Ndf2
{[%clk 0:00:04.1]} 37... Qd4 {[%clk 0:00:12.3]} 38. Kf4 {[%clk 0:00:04]} 38...
Kg7 {[%clk 0:00:11.6]} 39. Kf3 {[%clk 0:00:03.3]} 39... b5 {[%clk 0:00:11.3]}
40. Ng4 {[%clk 0:00:03.2]} 40... b4 {[%clk 0:00:09.9]} 41. Ngf6 {[%clk
0:00:03.3]} 41... c4 {[%clk 0:00:08.5]} 42. d7 {[%clk 0:00:03.6]} 42... c3
{[%clk 0:00:07.5]} 43. Ne8+ {[%clk 0:00:03.8]} 43... Kf8 {[%clk 0:00:05.1]} 44.
N8d6 {[%clk 0:00:01.1]} 44... Ke7 {[%clk 0:00:04.4]} 45. Nb5 {[%clk 0:00:01.6]}
45... Qd3+ {[%clk 0:00:03.7]} 46. Kf4 {[%clk 0:00:01.2]} 46... Qxb5 {[%clk
0:00:03.1]} 47. Nf6 {[%clk 0:00:01.7]} 47... Qc4+ {[%clk 0:00:02.1]} 48. Ke3
{[%clk 0:00:01.8]} 48... cxb2 {[%clk 0:00:03]} 49. Ng8+ {[%clk 0:00:01.6]} 49...
Kxd7 {[%clk 0:00:02.4]} 50. Nf6+ {[%clk 0:00:02.5]} 50... Kd8 {[%clk 0:00:02.5]}
51. Ng4 {[%clk 0:00:03.4]} 51... b1=Q {[%clk 0:00:02.9]} 52. Ne5 {[%clk
0:00:04.3]} 52... Qbd3+ {[%clk 0:00:03.6]} 53. Nxd3 {[%clk 0:00:04.2]} 53... Qc3
{[%clk 0:00:04.5]} 54. Ke2 {[%clk 0:00:04.4]} 54... b3 {[%clk 0:00:05.4]} 55.
Nf4 {[%clk 0:00:04.8]} 55... a4 {[%clk 0:00:06.3]} 56. Ne6+ {[%clk 0:00:05.7]}
56... Ke7 {[%clk 0:00:06]} 57. Nf4 {[%clk 0:00:05.8]} 57... Qc2+ {[%clk
0:00:06.5]} 58. Ke3 {[%clk 0:00:05.9]} 58... b2 {[%clk 0:00:07.4]} 59. Nd5+
{[%clk 0:00:06]} 59... Kd6 {[%clk 0:00:07.1]} 60. Nf4 {[%clk 0:00:06.3]} 60...
Qc3+ {[%clk 0:00:07.3]} 61. Ke4 {[%clk 0:00:06.3]} 61... b1=Q+ {[%clk
0:00:07.6]} 62. Nd3 {[%clk 0:00:05.7]} 62... Qbxd3+ {[%clk 0:00:08.2]} 63. Kf4
{[%clk 0:00:06.6]} 63... Qf3# {[%clk 0:00:08.6]} 0-1

[Event "*** SCC Grand Prix: Titled Tuesday Blitz"]
[Site "Chess.com"]
[Date "2020.10.06"]
[Round "7"]
[White "Bigfish1995"]
[Black "platy3"]
[Result "1-0"]
[WhiteElo "3108"]
[BlackElo "2810"]
[TimeControl "180+1"]
[EndTime "11:20:50 PDT"]
[Termination "Bigfish1995 won by resignation"]

1. e4 {[%clk 0:03:00.9]} 1... c5 {[%clk 0:02:59.4]} 2. Nf3 {[%clk 0:03:00.6]}
2... d6 {[%clk 0:02:56.4]} 3. Bb5+ {[%clk 0:02:58.4]} 3... Bd7 {[%clk
0:02:52.6]} 4. c4 {[%clk 0:02:57.3]} 4... Nf6 {[%clk 0:02:49.9]} 5. Nc3 {[%clk
0:02:56]} 5... g6 {[%clk 0:02:49.6]} 6. d4 {[%clk 0:02:54.3]} 6... cxd4 {[%clk
0:02:49.6]} 7. Nxd4 {[%clk 0:02:54]} 7... Bg7 {[%clk 0:02:49.7]} 8. O-O {[%clk
0:02:53.9]} 8... O-O {[%clk 0:02:49.9]} 9. Bxd7 {[%clk 0:02:54.5]} 9... Nbxd7
{[%clk 0:02:49.8]} 10. b3 {[%clk 0:02:53.5]} 10... a6 {[%clk 0:02:27.7]} 11. Be3
{[%clk 0:02:50.9]} 11... e6 {[%clk 0:02:18.7]} 12. Rc1 {[%clk 0:02:47.3]} 12...
Qe7 {[%clk 0:02:15.9]} 13. Re1 {[%clk 0:02:45.3]} 13... Rfd8 {[%clk 0:02:15]}
14. f4 {[%clk 0:02:35.4]} 14... Rac8 {[%clk 0:02:09.4]} 15. Bf2 {[%clk
0:02:30.1]} 15... e5 {[%clk 0:02:06.5]} 16. Nde2 {[%clk 0:02:20.4]} 16... Bh6
{[%clk 0:01:56.1]} 17. Bh4 {[%clk 0:01:52.7]} 17... exf4 {[%clk 0:01:48]} 18.
Nd5 {[%clk 0:01:52.1]} 18... Qe5 {[%clk 0:01:37.3]} 19. Nd4 {[%clk 0:01:42.7]}
19... Re8 {[%clk 0:01:21.7]} 20. Nf3 {[%clk 0:01:40.4]} 20... Qe6 {[%clk
0:01:21.9]} 21. Bg5 {[%clk 0:01:07.7]} 21... Bxg5 {[%clk 0:00:58]} 22. Nxg5
{[%clk 0:01:07.6]} 22... Qg4 {[%clk 0:00:58.9]} 23. Qxg4 {[%clk 0:01:00.1]}
23... Nxg4 {[%clk 0:00:59.8]} 24. Nxf4 {[%clk 0:00:58.9]} 24... Ngf6 {[%clk
0:00:50.4]} 25. Rcd1 {[%clk 0:00:41.3]} 25... h6 {[%clk 0:00:20.5]} 26. Nf3
{[%clk 0:00:41.4]} 26... Rxe4 {[%clk 0:00:11.6]} 27. Rxe4 {[%clk 0:00:41.4]}
27... Nxe4 {[%clk 0:00:12.5]} 28. Nd5 {[%clk 0:00:41.8]} 28... Kg7 {[%clk
0:00:11]} 29. Nd4 {[%clk 0:00:35.9]} 29... Nec5 {[%clk 0:00:11]} 30. Nc2 {[%clk
0:00:26.1]} 30... Ne5 {[%clk 0:00:11.1]} 31. Nde3 {[%clk 0:00:22.8]} 31... Rd8
{[%clk 0:00:10.4]} 32. h3 {[%clk 0:00:21.2]} 32... Nc6 {[%clk 0:00:10]} 33. Nd5
{[%clk 0:00:19.8]} 33... Ne6 {[%clk 0:00:09.1]} 34. Nce3 {[%clk 0:00:18.8]}
34... b5 {[%clk 0:00:09.1]} 35. cxb5 {[%clk 0:00:18.4]} 35... axb5 {[%clk
0:00:10]} 36. Rc1 {[%clk 0:00:18.5]} 36... Ned4 {[%clk 0:00:09.4]} 37. Kf2
{[%clk 0:00:18.5]} 37... Ra8 {[%clk 0:00:09.8]} 38. Nc3 {[%clk 0:00:17.4]} 38...
Nb4 {[%clk 0:00:08.7]} 39. Rd1 {[%clk 0:00:16.6]} 39... Nxa2 {[%clk 0:00:07.1]}
40. Rxd4 {[%clk 0:00:13.2]} 40... Nxc3 {[%clk 0:00:06.9]} 41. Kf3 {[%clk
0:00:12.4]} 41... d5 {[%clk 0:00:07.4]} 42. Rd3 {[%clk 0:00:12.3]} 42... b4
{[%clk 0:00:08]} 43. Nc2 {[%clk 0:00:12.2]} 43... Rb8 {[%clk 0:00:05.7]} 44. Rd4
{[%clk 0:00:12.5]} 44... Na2 {[%clk 0:00:03.9]} 45. Rxd5 {[%clk 0:00:11.8]}
45... Rc8 {[%clk 0:00:04.4]} 46. Nd4 {[%clk 0:00:12.1]} 46... Rc3+ {[%clk
0:00:04.1]} 47. Kf4 {[%clk 0:00:11.7]} 47... Nc1 {[%clk 0:00:05]} 48. Rb5 {[%clk
0:00:07.7]} 48... Nxb3 {[%clk 0:00:03.8]} 49. Nf3 {[%clk 0:00:06.3]} 49... Rc4+
{[%clk 0:00:03.7]} 50. Ke3 {[%clk 0:00:06.5]} 50... Nc5 {[%clk 0:00:03.9]} 51.
Nd2 {[%clk 0:00:06.5]} 51... Rc2 {[%clk 0:00:03.9]} 52. Rxb4 {[%clk 0:00:06.1]}
52... Ne6 {[%clk 0:00:03.4]} 53. Kd3 {[%clk 0:00:04.4]} 53... Rc6 {[%clk
0:00:03.2]} 54. Nf3 {[%clk 0:00:04]} 54... Rc8 {[%clk 0:00:03.8]} 55. g3 {[%clk
0:00:03.8]} 55... Rd8+ {[%clk 0:00:04.4]} 56. Ke3 {[%clk 0:00:04.2]} 56... Rd5
{[%clk 0:00:05]} 57. h4 {[%clk 0:00:04.4]} 57... h5 {[%clk 0:00:05.4]} 58. Nd2
{[%clk 0:00:04.7]} 58... Ra5 {[%clk 0:00:05.4]} 59. Ne4 {[%clk 0:00:04.7]} 59...
Ra3+ {[%clk 0:00:05.8]} 60. Kf2 {[%clk 0:00:05]} 60... Nc7 {[%clk 0:00:06]} 61.
Nd6 {[%clk 0:00:04.4]} 61... Ne6 {[%clk 0:00:05.2]} 62. Rb7 {[%clk 0:00:04]}
62... Kf6 {[%clk 0:00:03.4]} 63. Rxf7+ {[%clk 0:00:03.9]} 63... Ke5 {[%clk
0:00:04.1]} 64. Nc4+ {[%clk 0:00:04.4]} 1-0

[Event "*** SCC Grand Prix: Titled Tuesday Blitz"]
[Site "Chess.com"]
[Date "2020.10.06"]
[Round "7"]
[White "vladgoncharov"]
[Black "suyu28"]
[Result "1-0"]
[WhiteElo "2451"]
[BlackElo "2556"]
[TimeControl "180+1"]
[EndTime "11:20:59 PDT"]
[Termination "vladgoncharov won by resignation"]

1. d4 {[%clk 0:02:45.2]} 1... d5 {[%clk 0:02:55.2]} 2. c4 {[%clk 0:02:43.2]}
2... dxc4 {[%clk 0:02:51.2]} 3. Nf3 {[%clk 0:02:40.6]} 3... Nf6 {[%clk 0:02:43]}
4. e3 {[%clk 0:02:34.6]} 4... e6 {[%clk 0:02:43.3]} 5. Bxc4 {[%clk 0:02:34.5]}
5... c5 {[%clk 0:02:43.8]} 6. O-O {[%clk 0:02:34.3]} 6... a6 {[%clk 0:02:43.7]}
7. Bb3 {[%clk 0:02:30.4]} 7... Nc6 {[%clk 0:02:43.3]} 8. Qe2 {[%clk 0:02:30.1]}
8... cxd4 {[%clk 0:02:43.2]} 9. Rd1 {[%clk 0:02:29.7]} 9... Be7 {[%clk
0:02:41.3]} 10. exd4 {[%clk 0:02:18.5]} 10... O-O {[%clk 0:02:40.9]} 11. Nc3
{[%clk 0:02:18.6]} 11... Nb4 {[%clk 0:02:38.8]} 12. Bg5 {[%clk 0:02:16.1]} 12...
Bd7 {[%clk 0:02:32.5]} 13. Ne5 {[%clk 0:02:15.4]} 13... Bc6 {[%clk 0:02:31]} 14.
Rac1 {[%clk 0:02:08.6]} 14... Bd5 {[%clk 0:02:28.7]} 15. Nxd5 {[%clk 0:02:03.1]}
15... Nbxd5 {[%clk 0:02:28.4]} 16. Bc2 {[%clk 0:01:58.9]} 16... Rc8 {[%clk
0:02:24.5]} 17. Bb1 {[%clk 0:01:57.8]} 17... Qb6 {[%clk 0:02:21.6]} 18. Rxc8
{[%clk 0:01:46.5]} 18... Rxc8 {[%clk 0:02:20.9]} 19. h3 {[%clk 0:01:30.9]} 19...
Qb5 {[%clk 0:02:19.5]} 20. Qxb5 {[%clk 0:01:19.2]} 20... axb5 {[%clk 0:02:20.4]}
21. Rc1 {[%clk 0:01:19.4]} 21... Rxc1+ {[%clk 0:02:15.2]} 22. Bxc1 {[%clk
0:01:20.3]} 22... b4 {[%clk 0:02:14.9]} 23. Kf1 {[%clk 0:01:19.9]} 23... Bd8
{[%clk 0:02:15.1]} 24. Ke2 {[%clk 0:01:19.5]} 24... Ne7 {[%clk 0:02:12.2]} 25.
Kd3 {[%clk 0:01:18.4]} 25... b5 {[%clk 0:02:07.7]} 26. Bd2 {[%clk 0:01:15.2]}
26... Nfd5 {[%clk 0:02:04.6]} 27. Bc2 {[%clk 0:01:14.4]} 27... Bb6 {[%clk
0:02:01.7]} 28. g4 {[%clk 0:01:13.1]} 28... f6 {[%clk 0:01:57]} 29. Nd7 {[%clk
0:01:10.4]} 29... Ba7 {[%clk 0:01:56.7]} 30. Nc5 {[%clk 0:00:58.3]} 30... Kf7
{[%clk 0:01:53.5]} 31. f4 {[%clk 0:00:56]} 31... Nc6 {[%clk 0:01:32.3]} 32. Ke4
{[%clk 0:00:52.7]} 32... Nde7 {[%clk 0:01:00]} 33. Bb3 {[%clk 0:00:51.8]} 33...
Nxd4 {[%clk 0:00:49.3]} 34. Kxd4 {[%clk 0:00:42.9]} 34... Nc6+ {[%clk
0:00:49.4]} 35. Ke4 {[%clk 0:00:42.9]} 35... Bxc5 {[%clk 0:00:49.8]} 36. f5
{[%clk 0:00:43]} 36... Ke7 {[%clk 0:00:45.9]} 37. Bxe6 {[%clk 0:00:41.1]} 37...
Bd6 {[%clk 0:00:41.7]} 38. Bg8 {[%clk 0:00:37.7]} 38... h6 {[%clk 0:00:41.1]}
39. Bd5 {[%clk 0:00:31.3]} 39... Ne5 {[%clk 0:00:34.5]} 40. b3 {[%clk
0:00:31.1]} 40... Nd7 {[%clk 0:00:32.5]} 41. Bc6 {[%clk 0:00:30]} 41... Nc5+
{[%clk 0:00:29]} 42. Ke3 {[%clk 0:00:29.8]} 42... Na6 {[%clk 0:00:20.5]} 43.
Bxb5 {[%clk 0:00:29]} 43... Nc7 {[%clk 0:00:20.4]} 44. Bc6 {[%clk 0:00:29]}
44... Bc5+ {[%clk 0:00:20.5]} 45. Ke4 {[%clk 0:00:28.2]} 45... Kd6 {[%clk
0:00:21]} 46. Bb7 {[%clk 0:00:28.4]} 46... Nb5 {[%clk 0:00:20.9]} 47. Bf4+
{[%clk 0:00:27.2]} 47... Kd7 {[%clk 0:00:18]} 48. Kd5 {[%clk 0:00:27.2]} 48...
Bd6 {[%clk 0:00:17.7]} 49. Bxd6 {[%clk 0:00:20.1]} 49... Nxd6 {[%clk 0:00:17.4]}
50. Bc6+ {[%clk 0:00:18.9]} 50... Kc7 {[%clk 0:00:17.2]} 51. Ba4 {[%clk
0:00:18.8]} 51... Nf7 {[%clk 0:00:16.3]} 52. Kc4 {[%clk 0:00:18.3]} 52... Ng5
{[%clk 0:00:16.6]} 53. h4 {[%clk 0:00:18.1]} 53... Nf3 {[%clk 0:00:16.9]} 54. h5
{[%clk 0:00:16.4]} 54... Ne5+ {[%clk 0:00:17.2]} 55. Kxb4 {[%clk 0:00:16.4]}
55... Nxg4 {[%clk 0:00:18.1]} 56. Be8 {[%clk 0:00:15.7]} 56... Ne3 {[%clk
0:00:14.5]} 57. Bg6 {[%clk 0:00:14.7]} 57... Kb6 {[%clk 0:00:14.2]} 58. a4
{[%clk 0:00:14.4]} 58... Nd5+ {[%clk 0:00:12.3]} 59. Kc4 {[%clk 0:00:14.4]}
59... Ne3+ {[%clk 0:00:11.8]} 60. Kd4 {[%clk 0:00:14.1]} 60... Nc2+ {[%clk
0:00:12]} 61. Kd5 {[%clk 0:00:14.5]} 61... Ka5 {[%clk 0:00:10.7]} 62. Ke6 {[%clk
0:00:14.5]} 62... Ne3 {[%clk 0:00:05.6]} 63. Kf7 {[%clk 0:00:14.8]} 63... Kb4
{[%clk 0:00:05.8]} 64. Kxg7 {[%clk 0:00:13.9]} 64... Ng4 {[%clk 0:00:04.1]} 65.
Bf7 {[%clk 0:00:13.7]} 65... Ka5 {[%clk 0:00:03.9]} 66. Kg6 {[%clk 0:00:12.8]}
66... Kb4 {[%clk 0:00:03]} 67. Bc4 {[%clk 0:00:10.5]} 67... Ka5 {[%clk 0:00:02]}
68. Be2 {[%clk 0:00:10.5]} 68... Nf2 {[%clk 0:00:01]} 69. Kxh6 {[%clk
0:00:09.9]} 1-0

[Event "*** SCC Grand Prix: Titled Tuesday Blitz"]
[Site "Chess.com"]
[Date "2020.10.06"]
[Round "7"]
[White "queen_iryna"]
[Black "GlennTipton"]
[Result "1/2-1/2"]
[WhiteElo "2308"]
[BlackElo "2437"]
[TimeControl "180+1"]
[EndTime "11:20:59 PDT"]
[Termination "Game drawn - insufficient material"]

1. e4 {[%clk 0:03:00.9]} 1... e5 {[%clk 0:02:58.6]} 2. Nf3 {[%clk 0:03:01.3]}
2... Nc6 {[%clk 0:02:56.8]} 3. c3 {[%clk 0:02:59.9]} 3... Nf6 {[%clk 0:02:52.7]}
4. d3 {[%clk 0:02:59.3]} 4... a5 {[%clk 0:02:49]} 5. Nbd2 {[%clk 0:02:59]} 5...
Bc5 {[%clk 0:02:43.9]} 6. Be2 {[%clk 0:02:59]} 6... d6 {[%clk 0:02:42.3]} 7. O-O
{[%clk 0:02:58.8]} 7... O-O {[%clk 0:02:39.2]} 8. h3 {[%clk 0:02:59]} 8... Ba7
{[%clk 0:02:32.2]} 9. Re1 {[%clk 0:02:58.9]} 9... Ne7 {[%clk 0:02:32]} 10. Nf1
{[%clk 0:02:51.5]} 10... Ng6 {[%clk 0:02:27.8]} 11. Ng3 {[%clk 0:02:47.6]} 11...
c6 {[%clk 0:02:27.5]} 12. Bf1 {[%clk 0:02:44.5]} 12... h6 {[%clk 0:02:23.3]} 13.
Be3 {[%clk 0:02:41]} 13... Bxe3 {[%clk 0:02:17.2]} 14. Rxe3 {[%clk 0:02:41.9]}
14... Nh7 {[%clk 0:02:17.8]} 15. Nf5 {[%clk 0:02:40.8]} 15... Bxf5 {[%clk
0:02:11.9]} 16. exf5 {[%clk 0:02:41.7]} 16... Ne7 {[%clk 0:02:12.6]} 17. g4
{[%clk 0:02:41.3]} 17... Nd5 {[%clk 0:02:11.4]} 18. Re1 {[%clk 0:02:33.6]} 18...
Ng5 {[%clk 0:02:07]} 19. d4 {[%clk 0:02:27.7]} 19... Nxf3+ {[%clk 0:01:44.8]}
20. Qxf3 {[%clk 0:02:28.6]} 20... Qf6 {[%clk 0:01:41.7]} 21. dxe5 {[%clk
0:02:27.7]} 21... dxe5 {[%clk 0:01:41.6]} 22. Rad1 {[%clk 0:02:06.1]} 22... Rad8
{[%clk 0:01:41.3]} 23. Qe4 {[%clk 0:02:00.8]} 23... Rfe8 {[%clk 0:01:30.9]} 24.
c4 {[%clk 0:02:00.3]} 24... Nb4 {[%clk 0:01:22.3]} 25. a3 {[%clk 0:01:53.1]}
25... Na6 {[%clk 0:01:21]} 26. Rxd8 {[%clk 0:01:43.1]} 26... Qxd8 {[%clk
0:01:20.5]} 27. f4 {[%clk 0:01:39.3]} 27... Qb6+ {[%clk 0:01:14.7]} 28. Qe3
{[%clk 0:01:31.8]} 28... Qxe3+ {[%clk 0:00:54.1]} 29. Rxe3 {[%clk 0:01:32.7]}
29... f6 {[%clk 0:00:43.6]} 30. fxe5 {[%clk 0:01:32.1]} 30... Rxe5 {[%clk
0:00:43]} 31. Rxe5 {[%clk 0:01:32.1]} 31... fxe5 {[%clk 0:00:43.9]} 32. Kf2
{[%clk 0:01:31.5]} 32... a4 {[%clk 0:00:41.8]} 33. Ke3 {[%clk 0:01:24.4]} 33...
Nc5 {[%clk 0:00:39.1]} 34. Kd2 {[%clk 0:01:16.3]} 34... Kf7 {[%clk 0:00:36.7]}
35. Be2 {[%clk 0:01:16]} 35... Kf6 {[%clk 0:00:32.4]} 36. h4 {[%clk 0:01:12.8]}
36... h5 {[%clk 0:00:32.2]} 37. Kc3 {[%clk 0:01:05.5]} 37... hxg4 {[%clk
0:00:26.5]} 38. Bxg4 {[%clk 0:01:06.4]} 38... Ne4+ {[%clk 0:00:25.9]} 39. Kb4
{[%clk 0:01:04.3]} 39... Nf2 {[%clk 0:00:26.2]} 40. Be2 {[%clk 0:00:58]} 40...
Kxf5 {[%clk 0:00:25.4]} 41. Kxa4 {[%clk 0:00:58.2]} 41... Ke4 {[%clk 0:00:24.4]}
42. Ka5 {[%clk 0:00:55.7]} 42... Ke3 {[%clk 0:00:23.2]} 43. Bf1 {[%clk
0:00:55.6]} 43... Nd3 {[%clk 0:00:15.5]} 44. Kb6 {[%clk 0:00:49.7]} 44... Nxb2
{[%clk 0:00:13.8]} 45. Kxb7 {[%clk 0:00:49.9]} 45... Kf2 {[%clk 0:00:14.2]} 46.
Bh3 {[%clk 0:00:48.5]} 46... Nxc4 {[%clk 0:00:14.3]} 47. Kxc6 {[%clk 0:00:45.1]}
47... e4 {[%clk 0:00:14.5]} 48. Kd5 {[%clk 0:00:41.4]} 48... e3 {[%clk
0:00:14.7]} 49. Bg4 {[%clk 0:00:39.9]} 49... Nxa3 {[%clk 0:00:15.1]} 50. Ke6
{[%clk 0:00:39]} 50... Nc4 {[%clk 0:00:14.6]} 51. h5 {[%clk 0:00:35.1]} 51...
Kg3 {[%clk 0:00:14.6]} 52. Bd1 {[%clk 0:00:34.3]} 52... Nb2 {[%clk 0:00:13.9]}
53. Be2 {[%clk 0:00:33.1]} 53... Kf2 {[%clk 0:00:13.9]} 54. Bb5 {[%clk 0:00:33]}
54... Kg3 {[%clk 0:00:12.7]} 55. Kf7 {[%clk 0:00:32.5]} 55... Kh4 {[%clk
0:00:13]} 56. Kg6 {[%clk 0:00:30.6]} 56... Kg4 {[%clk 0:00:12.5]} 57. Be2+
{[%clk 0:00:29.1]} 57... Kh4 {[%clk 0:00:12.5]} 58. Kxg7 {[%clk 0:00:29.1]}
58... Na4 {[%clk 0:00:12.9]} 59. h6 {[%clk 0:00:27.9]} 59... Nc3 {[%clk
0:00:13.3]} 60. Bd3 {[%clk 0:00:27]} 60... Nd5 {[%clk 0:00:12.9]} 61. h7 {[%clk
0:00:27.2]} 61... Nf4 {[%clk 0:00:13.3]} 62. h8=Q+ {[%clk 0:00:26.9]} 62... Kg4
{[%clk 0:00:14.2]} 63. Bb5 {[%clk 0:00:24.5]} 63... Kf3 {[%clk 0:00:15.1]} 64.
Qa8+ {[%clk 0:00:23.8]} 64... Kf2 {[%clk 0:00:15.1]} 65. Qf8 {[%clk 0:00:23]}
65... Kg3 {[%clk 0:00:15]} 66. Qf5 {[%clk 0:00:21.4]} 66... e2 {[%clk
0:00:13.7]} 67. Bxe2 {[%clk 0:00:20.7]} 67... Nxe2 {[%clk 0:00:13.7]} 68. Qe5+
{[%clk 0:00:20.7]} 68... Kf3 {[%clk 0:00:14.6]} 69. Kh6 {[%clk 0:00:19.4]} 69...
Nf4 {[%clk 0:00:14.4]} 70. Kg5 {[%clk 0:00:19]} 70... Ng2 {[%clk 0:00:14.7]} 71.
Qf5+ {[%clk 0:00:18.8]} 71... Ke3 {[%clk 0:00:14.9]} 72. Qe5+ {[%clk 0:00:17.5]}
72... Kf3 {[%clk 0:00:15.1]} 73. Qd5+ {[%clk 0:00:17.8]} 73... Kf2 {[%clk
0:00:15]} 74. Kh5 {[%clk 0:00:16.2]} 74... Nf4+ {[%clk 0:00:13.3]} 75. Kg5
{[%clk 0:00:13.7]} 75... Nxd5 {[%clk 0:00:14.2]} 1/2-1/2